[Event "Kragero Resort Chess B 2019"]
[Site "Kragero"]
[Date "2019.02.22"]
[Round "4.3"]
[White "Tumanyan, Simon H."]
[Black "Omtvedt, Per"]
[Result "1/2-1/2"]
[ECO "B44"]
[WhiteElo "1704"]
[BlackElo "1918"]
[Annotator "NA RC"]
[PlyCount "96"]
[EventDate "2019.02.20"]
[EventType "swiss"]
[EventCountry "NOR"]
[SourceTitle "playchess.com"]
[Source "ChessBase"]
[SourceQuality "1"]
[TimeControl "5400+30"]

1. e4 {[%emt 0:00:00]} c5 {[%emt 0:00:00]} 2. Nf3 {[%emt 0:00:00]} e6 {[%emt 0:00:04]} 3. d4 {[%emt 0:00:08]} cxd4 {[%emt 0:00:06]} 4. Nxd4 {[%emt 0:00:02]} Nc6 {[%emt 0:00:21]} 5. c4 {[%emt 0:01:22]} Nf6 {[%emt 0:01:52]} 6. Nc3 {[%emt 0:00:33]} Bb4 {[%emt 0:01:37]} 7. f3 {[%emt 0:02:50]} d5 {[%emt 0:02:10] B44: Sicilian: Taimanov: 5 Nb5} (7... O-O 8. Nxc6 bxc6 9. e5 Nh5 10. Qd4 f6 11. exf6 e5 12. Qh4 Nxf6 13. Bd3 Qb6 14. Bg5 d5 15. a3 Bxc3+ 16. bxc3 {0-1 (49) Balint,V (2281)-Mischuk,D (2403) Budapest 2017}) 8. Nxc6 {[%emt 0:03:11]} bxc6 {[%emt 0:01:40]} 9. cxd5 {[%emt 0:00:11]} exd5 {[%emt 0:00:57]} 10. Qd4 {[%emt 0:03:05]} Qe7 {[%emt 0:03:40]} 11. Bg5 {[%emt 0:01:57]} dxe4 {[%emt 0:02:57]} 12. Bxf6 {[%emt 0:00:54]} gxf6 {[%emt 0:00:41]} 13. O-O-O $146 {[%emt 0:00:33]} ({Predecessor:} 13. Qxe4 Qxe4+ 14. fxe4 Bxc3+ 15. bxc3 Be6 16. Bd3 {½-½ (38) Hannaske,A-Goormachtigh,J (2237) Gent 2011}) 13... Bxc3 {[%emt 0:02:02]} 14. Qxc3 {[%emt 0:00:34]} O-O {[%emt 0:00:49]} 15. fxe4 {[%emt 0:01:34]} Qe5 {[%emt 0:03:29]} 16. Qxe5 {[%emt 0:02:02]} fxe5 {[%emt 0:00:02]} 17. Bc4 {[%emt 0:00:49]} Bg4 {[%emt 0:04:45]} 18. Rd6 {[%emt 0:00:31]} Rfd8 {[%emt 0:02:18]} 19. Rf6 {[%emt 0:01:22]} Bh5 {[%emt 0:00:41]} 20. Rhf1 {[%emt 0:04:33]} Rd4 {[%emt 0:02:43]} 21. Bxf7+ {[%emt 0:03:39]} Bxf7 {[%emt 0:00:03]} 22. Rxf7 {[%emt 0:00:01]} Rxe4 {[%emt 0:00:19]} 23. Rc7 {[%emt 0:00:45]} Re2 {[%emt 0:01:17]} 24. Rff7 {[%emt 0:01:06]} Rxg2 {[%emt 0:00:15]} 25. Rxh7 {[%emt 0:00:34]} Rf8 {[%emt 0:01:32]} 26. Rhd7 {[%emt 0:01:05]} Rf1+ {[%emt 0:04:30]} 27. Rd1 {[%emt 0:00:02]} Rxd1+ {[%emt 0:00:30]} 28. Kxd1 {[%emt 0:00:01]} Rxb2 {[%emt 0:00:17]} 29. Rxa7 {[%emt 0:00:18]} Rxh2 {[%emt 0:00:13]} 30. a4 {[%emt 0:00:13]} Ra2 {[%emt 0:04:57]} 31. Re7 {[%emt 0:01:27]} Rxa4 {[%emt 0:00:54]} 32. Rxe5 {[%emt 0:00:00]} Kf7 {[%emt 0:00:23]} 33. Kc2 {[%emt 0:00:06]} Kf6 {[%emt 0:00:26]} 34. Re8 {[%emt 0:00:11]} Ra5 {[%emt 0:00:17]} 35. Kc3 {[%emt 0:00:31]} Re5 {[%emt 0:00:06]} 36. Rxe5 {[%emt 0:00:12]} Kxe5 {[%emt 0:00:06]} 37. Kc4 {[%emt 0:00:02]} Kd6 {[%emt 0:00:12]} 38. Kd4 {[%emt 0:00:04]} c5+ {[%emt 0:00:04]} 39. Kc4 {[%emt 0:00:03]} Kc6 {[%emt 0:00:06]} 40. Kc3 {[%emt 0:00:05]} Kd5 {[%emt 0:00:05]} 41. Kd3 {[%emt 0:00:04]} c4+ {[%emt 0:00:05]} 42. Kc3 {[%emt 0:00:05]} Kc5 {[%emt 0:00:04]} 43. Kc2 {[%emt 0:00:04]} Kd4 {[%emt 0:00:02]} 44. Kd2 {[%emt 0:00:04]} c3+ {[%emt 0:00:15]} 45. Kc2 {[%emt 0:00:02]} Kc4 {[%emt 0:00:07]} 46. Kc1 $11 {[%emt 0:00:03]} Kd3 {[%emt 0:00:07]} 47. Kd1 {[%emt 0:00:03]} c2+ {[%emt 0:00:06]} 48. Kc1 {[%emt 0:00:02]} Kc3 {[%emt 0:00:09]} 1/2-1/2

[Event "Kragero Resort Chess B 2019"]
[Site "Kragero"]
[Date "2019.02.22"]
[Round "4.4"]
[White "Becher, Adrian"]
[Black "Leonhardsen, Vebjorn Maanum"]
[Result "0-1"]
[ECO "B10"]
[WhiteElo "1642"]
[BlackElo "1748"]
[Annotator "NA"]
[PlyCount "112"]
[EventDate "2019.02.20"]
[EventType "swiss"]
[EventCountry "NOR"]
[SourceTitle "playchess.com"]
[Source "ChessBase"]
[SourceQuality "1"]
[TimeControl "5400+30"]

1. e4 {[%emt 0:00:00]} c6 {[%emt 0:02:39]} 2. Nf3 {[%emt 0:00:28]} d5 {[%emt 0:00:06]} 3. exd5 {[%emt 0:04:09]} cxd5 {[%emt 0:00:06]} 4. g3 {[%emt 0:01:42]} Bg4 {[%emt 0:00:48]} 5. d4 {[%emt 0:03:57]} e6 {[%emt 0:01:28]} 6. Bg2 {[%emt 0:01:26]} Nf6 {[%emt 0:00:17]} 7. O-O {[%emt 0:01:09]} Bd6 {[%emt 0:00:25]} 8. c4 {[%emt 0:05:18]} O-O {[%emt 0:02:48]} 9. c5 {[%emt 0:04:25]} Bc7 {[%emt 0:01:09]} 10. b4 {[%emt 0:02:05]} a6 {[%emt 0:00:53]} 11. a4 {[%emt 0:03:43]} Nc6 {[%emt 0:00:26]} 12. Ba3 {[%emt 0:01:11]} e5 {[%emt 0:03:43]} 13. dxe5 {[%emt 0:03:22]} Nxe5 {[%emt 0:00:56]} 14. Nbd2 {[%emt 0:05:35]} Re8 {[%emt 0:08:47]} 15. Qb3 {[%emt 0:03:10]} Nxf3+ {[%emt 0:01:52]} 16. Nxf3 {[%emt 0:01:34]} Qd7 {[%emt 0:02:03]} 17. Nd4 {[%emt 0:05:59]} Bh3 {[%emt 0:01:50]} 18. f3 {[%emt 0:06:33]} Bxg2 {[%emt 0:03:50]} 19. Kxg2 {[%emt 0:00:07]} Be5 {[%emt 0:01:49]} 20. Bb2 {[%emt 0:04:15]} Re7 {[%emt 0:02:29]} 21. Rae1 {[%emt 0:08:23]} Rae8 {[%emt 0:01:48]} 22. Qd1 {[%emt 0:07:33]} Bc7 {[%emt 0:03:06]} 23. Bc3 {[%emt 0:03:44]} Rxe1 {[%emt 0:02:02]} 24. Rxe1 {[%emt 0:00:15]} Rxe1 {[%emt 0:00:26]} 25. Bxe1 {[%emt 0:00:19]} Be5 {[%emt 0:02:14]} 26. Bf2 {[%emt 0:00:59]} Ne8 {[%emt 0:03:56]} 27. Qb3 {[%emt 0:00:58]} Bxd4 {[%emt 0:01:36]} 28. Bxd4 {[%emt 0:00:09]} Nc7 {[%emt 0:00:24]} 29. Kf2 {[%emt 0:07:46]} Ne6 {[%emt 0:01:02]} 30. Ke3 {[%emt 0:02:27]} Nc7 {[%emt 0:00:31]} 31. Kf2 {[%emt 0:02:02]} Qh3 {[%emt 0:04:43]} 32. Kg1 {[%emt 0:00:06]} Qh6 {[%emt 0:01:03]} 33. Qe3 {[%emt 0:00:58]} Qe6 {[%emt 0:07:24]} 34. Kf2 {[%emt 0:01:27]} Qd7 {[%emt 0:00:21]} 35. Qb3 {[%emt 0:04:01]} h5 {[%emt 0:03:13]} 36. a5 {[%emt 0:03:14]} Qh3 {[%emt 0:00:45]} 37. Kg1 {[%emt 0:00:21]} Qe6 {[%emt 0:06:37]} 38. Qe3 {[%emt 0:00:23]} Qf5 {[%emt 0:05:30]} 39. Qe5 {[%emt 0:01:36]} Qxe5 {[%emt 0:00:50]} 40. Bxe5 {[%emt 0:00:07]} Ne6 {[%emt 0:00:25]} 41. Kf2 {[%emt 0:00:24]} Kf8 {[%emt 0:00:39]} 42. Ke3 {[%emt 0:00:11]} Ke7 {[%emt 0:00:48]} 43. f4 {[%emt 0:00:28]} g6 {[%emt 0:00:38]} 44. h3 {[%emt 0:00:30]} Nd8 {[%emt 0:00:30]} 45. Bc3 {[%emt 0:01:27]} Ke6 {[%emt 0:01:53]} 46. g4 {[%emt 0:01:16]} Nc6 {[%emt 0:00:51]} 47. Kf3 {[%emt 0:00:45]} d4 {[%emt 0:00:46]} 48. Bd2 {[%emt 0:00:14]} Kd5 {[%emt 0:00:39]} 49. gxh5 {[%emt 0:01:03]} gxh5 {[%emt 0:00:13]} 50. Be1 {[%emt 0:01:04]} Ne7 {[%emt 0:01:23]} 51. Bd2 {[%emt 0:00:31]} Nf5 {[%emt 0:01:29]} 52. Bc1 {[%emt 0:00:30]} d3 {[%emt 0:02:21]} 53. Be3 {[%emt 0:00:37]} Nxe3 {[%emt 0:01:34]} 54. Kxe3 {[%emt 0:00:07]} Kc4 {[%emt 0:00:15]} 55. f5 {[%emt 0:00:30]} Kc3 {[%emt 0:01:28]} 56. b5 {[%emt 0:00:11]} d2 {[%emt 0:00:17]} 0-1

[Event "Kragero Resort Chess B 2019"]
[Site "Kragero"]
[Date "2019.02.22"]
[Round "4.5"]
[White "Mikelsen, Mattis"]
[Black "Austad, Eirik"]
[Result "0-1"]
[ECO "B11"]
[WhiteElo "1745"]
[BlackElo "1629"]
[Annotator "NA"]
[PlyCount "100"]
[EventDate "2019.02.20"]
[EventType "swiss"]
[EventCountry "NOR"]
[SourceTitle "playchess.com"]
[Source "ChessBase"]
[SourceQuality "1"]
[TimeControl "5400+30"]

1. e4 {[%emt 0:00:00]} c6 {[%emt 0:00:57]} 2. Nc3 {[%emt 0:00:00]} d5 {[%emt 0:00:07]} 3. Nf3 {[%emt 0:00:00]} Bg4 {[%emt 0:00:04]} 4. exd5 {[%emt 0:03:14]} cxd5 {[%emt 0:00:45]} 5. Bb5+ {[%emt 0:01:43]} Nc6 {[%emt 0:05:03]} 6. h3 {[%emt 0:01:25]} Bxf3 {[%emt 0:04:31]} 7. Qxf3 {[%emt 0:00:07]} a6 {[%emt 0:04:24]} 8. Ba4 {[%emt 0:08:22]} e6 {[%emt 0:07:30]} 9. d3 {[%emt 0:05:02]} Bd6 {[%emt 0:02:44]} 10. O-O {[%emt 0:02:20]} Nge7 {[%emt 0:10:23]} 11. Re1 {[%emt 0:07:00]} O-O {[%emt 0:02:02]} 12. Bf4 {[%emt 0:11:11]} Ng6 {[%emt 0:14:51]} 13. Bxd6 {[%emt 0:06:58]} Qxd6 {[%emt 0:00:19]} 14. Ne2 {[%emt 0:06:01]} Rfd8 {[%emt 0:16:37]} 15. d4 {[%emt 0:04:06]} Na5 {[%emt 0:03:04]} 16. Bb3 {[%emt 0:04:23]} Rac8 {[%emt 0:02:58]} 17. c3 {[%emt 0:01:22]} Qb6 {[%emt 0:01:37]} 18. Nc1 {[%emt 0:03:19]} Nc4 {[%emt 0:03:07]} 19. Nd3 {[%emt 0:01:50]} Nd2 {[%emt 0:01:31]} 20. Qd1 {[%emt 0:00:34]} Nc4 {[%emt 0:01:25]} 21. Qc2 {[%emt 0:01:38]} Qa5 {[%emt 0:04:42]} 22. Nc5 {[%emt 0:07:31]} Qb6 {[%emt 0:02:00]} 23. Bxc4 {[%emt 0:01:29]} dxc4 {[%emt 0:00:14]} 24. Re4 {[%emt 0:04:24]} Qa7 {[%emt 0:00:41]} 25. Qa4 {[%emt 0:01:49]} Rc7 {[%emt 0:02:48]} 26. Re3 {[%emt 0:03:04]} b6 {[%emt 0:00:20]} 27. Ne4 {[%emt 0:01:12]} Qb7 {[%emt 0:01:06]} 28. Rae1 {[%emt 0:01:50]} Qc6 {[%emt 0:00:46]} 29. Qxc6 {[%emt 0:04:27]} Rxc6 {[%emt 0:00:02]} 30. g3 {[%emt 0:00:22]} h6 {[%emt 0:00:18]} 31. Nd2 {[%emt 0:00:33]} Rb8 {[%emt 0:01:03]} 32. Nf3 {[%emt 0:01:34]} Ne7 {[%emt 0:00:54]} 33. Ne5 {[%emt 0:00:20]} Rc7 {[%emt 0:00:16]} 34. Rf3 {[%emt 0:01:41]} Nd5 {[%emt 0:00:22]} 35. Ng4 {[%emt 0:00:33]} b5 {[%emt 0:00:45]} 36. a3 {[%emt 0:00:51]} a5 {[%emt 0:00:08]} 37. Ne3 {[%emt 0:00:19]} Nxe3 {[%emt 0:00:26]} 38. fxe3 {[%emt 0:00:17]} b4 {[%emt 0:00:14]} 39. axb4 {[%emt 0:00:35]} axb4 {[%emt 0:00:06]} 40. e4 {[%emt 0:00:14]} Rd7 {[%emt 0:00:38]} 41. Ra1 {[%emt 0:01:42]} bxc3 {[%emt 0:02:07]} 42. bxc3 {[%emt 0:00:07]} Rb2 {[%emt 0:01:10]} 43. Ra4 {[%emt 0:00:49]} Re2 {[%emt 0:00:41]} 44. Rxc4 {[%emt 0:01:13]} Rxe4 {[%emt 0:00:16]} 45. Kf2 {[%emt 0:03:21]} e5 {[%emt 0:00:57]} 46. Re3 {[%emt 0:00:05]} Rxe3 {[%emt 0:00:07]} 47. Kxe3 {[%emt 0:00:02]} exd4+ {[%emt 0:00:08]} 48. Rxd4 {[%emt 0:01:27]} Rc7 {[%emt 0:01:37]} 49. Rd8+ {[%emt 0:00:10]} Kh7 {[%emt 0:00:05]} 50. Kd4 {[%emt 0:00:29]} Kg6 {[%emt 0:00:36]} 0-1

[Event "Kragero Resort Chess B 2019"]
[Site "Kragero"]
[Date "2019.02.22"]
[Round "4.6"]
[White "Frovik, Einar Clausen"]
[Black "Bernstein, Jonas August"]
[Result "1/2-1/2"]
[ECO "B17"]
[WhiteElo "1555"]
[BlackElo "1744"]
[Annotator "NA"]
[PlyCount "108"]
[EventDate "2019.02.20"]
[EventType "swiss"]
[EventCountry "NOR"]
[SourceTitle "playchess.com"]
[Source "ChessBase"]
[SourceQuality "1"]
[TimeControl "5400+30"]

1. e4 {[%emt 0:00:00]} c6 {[%emt 0:06:09]} 2. d4 {[%emt 0:00:00]} d5 {[%emt 0:00:37]} 3. Nc3 {[%emt 0:00:00]} dxe4 {[%emt 0:00:10]} 4. Nxe4 {[%emt 0:00:03]} Nd7 {[%emt 0:00:12]} 5. Bc4 {[%emt 0:02:41]} Ngf6 {[%emt 0:00:45]} 6. Ng3 {[%emt 0:07:24]} Nb6 {[%emt 0:05:22]} 7. Bb3 {[%emt 0:01:17]} e6 {[%emt 0:10:23]} 8. Nf3 {[%emt 0:02:44]} Be7 {[%emt 0:02:06]} 9. c3 {[%emt 0:02:47]} O-O {[%emt 0:00:45]} 10. Bc2 {[%emt 0:02:23]} c5 {[%emt 0:01:10]} 11. O-O {[%emt 0:03:42]} cxd4 {[%emt 0:05:56]} 12. Nxd4 {[%emt 0:00:48]} Qc7 {[%emt 0:03:29]} 13. Qe2 {[%emt 0:03:04]} Nbd5 {[%emt 0:02:33]} 14. Ne4 {[%emt 0:10:03]} Nxe4 {[%emt 0:06:17]} 15. Qxe4 {[%emt 0:01:22]} Nf6 {[%emt 0:00:19]} 16. Qh4 {[%emt 0:01:39]} g6 {[%emt 0:06:03]} 17. Bg5 {[%emt 0:08:04]} Nd5 {[%emt 0:02:21]} 18. Nf3 {[%emt 0:10:03]} Bxg5 {[%emt 0:10:08]} 19. Nxg5 {[%emt 0:01:34]} f6 {[%emt 0:01:24]} 20. Nf3 {[%emt 0:05:40]} Nf4 {[%emt 0:06:16]} 21. Rfe1 {[%emt 0:08:54]} e5 {[%emt 0:04:41]} 22. g3 {[%emt 0:06:00]} Nh3+ {[%emt 0:03:45]} 23. Kg2 {[%emt 0:00:46]} Kg7 {[%emt 0:04:13]} 24. Ng1 {[%emt 0:05:25]} Ng5 {[%emt 0:02:24]} 25. Qb4 {[%emt 0:03:49]} Bd7 {[%emt 0:01:18]} 26. h4 {[%emt 0:00:56]} Bc6+ {[%emt 0:00:43]} 27. Kh2 {[%emt 0:00:35]} Nf7 {[%emt 0:00:53]} 28. Be4 {[%emt 0:01:22]} Rad8 {[%emt 0:02:34]} 29. Rad1 {[%emt 0:00:45]} Nh6 {[%emt 0:02:57]} 30. Bxc6 {[%emt 0:01:40]} bxc6 {[%emt 0:01:11]} 31. b3 {[%emt 0:01:43]} Rb8 {[%emt 0:00:47]} 32. Qd6 {[%emt 0:01:32]} Qb6 {[%emt 0:01:29]} 33. Kg2 {[%emt 0:00:51]} Nf5 {[%emt 0:00:49]} 34. Qd2 {[%emt 0:01:45]} c5 {[%emt 0:02:25]} 35. Nf3 {[%emt 0:00:38]} Rfd8 {[%emt 0:01:08]} 36. Qe2 {[%emt 0:01:07]} a5 {[%emt 0:00:51]} 37. Rxd8 {[%emt 0:00:29]} Rxd8 {[%emt 0:00:09]} 38. Rd1 {[%emt 0:00:13]} Rxd1 {[%emt 0:02:54]} 39. Qxd1 {[%emt 0:00:05]} Qc6 {[%emt 0:00:27]} 40. Kh2 {[%emt 0:01:41]} e4 {[%emt 0:00:33]} 41. Nd2 {[%emt 0:01:35]} e3 {[%emt 0:00:19]} 42. fxe3 {[%emt 0:00:19]} Nxe3 {[%emt 0:00:26]} 43. Qe2 {[%emt 0:01:48]} Qe6 {[%emt 0:01:01]} 44. Qf3 {[%emt 0:01:25]} Ng4+ {[%emt 0:00:41]} 45. Kg2 {[%emt 0:00:26]} f5 {[%emt 0:00:29]} 46. Qb7+ {[%emt 0:00:58]} Kf6 {[%emt 0:00:21]} 47. Qf3 {[%emt 0:00:23]} Qe1 {[%emt 0:00:26]} 48. Qc6+ {[%emt 0:00:35]} Kg7 {[%emt 0:00:15]} 49. Qc7+ {[%emt 0:00:08]} Kh6 {[%emt 0:00:31]} 50. Qf4+ {[%emt 0:00:14]} Kg7 {[%emt 0:00:17]} 51. Qc7+ {[%emt 0:00:06]} Kf6 {[%emt 0:00:53]} 52. Qd8+ {[%emt 0:00:49]} Kg7 {[%emt 0:00:27]} 53. Qc7+ {[%emt 0:00:18]} Kf6 {[%emt 0:00:14]} 54. Qd8+ {[%emt 0:00:46]} Kg7 {[%emt 0:00:47]} 1/2-1/2

[Event "Kragero Resort Chess B 2019"]
[Site "Kragero"]
[Date "2019.02.22"]
[Round "4.7"]
[White "Arntsen, Frode"]
[Black "Sivertsen, Jarle"]
[Result "1-0"]
[ECO "A20"]
[WhiteElo "1718"]
[BlackElo "1605"]
[Annotator "NA"]
[PlyCount "69"]
[EventDate "2019.02.20"]
[EventType "swiss"]
[EventCountry "NOR"]
[SourceTitle "playchess.com"]
[Source "ChessBase"]
[SourceQuality "1"]
[TimeControl "5400+30"]

1. c4 {[%emt 0:00:00]} e5 {[%emt 0:00:52]} 2. g3 {[%emt 0:00:00]} Nf6 {[%emt 0:00:07]} 3. Bg2 {[%emt 0:00:00]} c6 {[%emt 0:00:03]} 4. Nf3 {[%emt 0:04:40]} e4 {[%emt 0:00:04]} 5. Nd4 {[%emt 0:00:04]} d5 {[%emt 0:00:04]} 6. cxd5 {[%emt 0:01:43]} Qxd5 {[%emt 0:01:00]} 7. Nc2 {[%emt 0:02:07]} Qh5 {[%emt 0:00:06]} 8. Ne3 {[%emt 0:01:53]} Bh3 {[%emt 0:00:37]} 9. Qb3 {[%emt 0:02:15]} Bxg2 {[%emt 0:00:32]} 10. Qxb7 {[%emt 0:00:17]} Bxh1 {[%emt 0:00:47]} 11. Qc8+ {[%emt 0:00:14]} Ke7 {[%emt 0:00:29]} 12. Nf5+ {[%emt 0:00:29]} Qxf5 {[%emt 0:00:08]} 13. Qxf5 {[%emt 0:00:18]} Nbd7 {[%emt 0:02:09]} 14. Nc3 {[%emt 0:01:45]} g6 {[%emt 0:00:08]} 15. Qh3 {[%emt 0:02:12]} e3 {[%emt 0:02:51]} 16. f3 {[%emt 0:05:04]} exd2+ {[%emt 0:00:27]} 17. Bxd2 {[%emt 0:00:10]} Bg7 {[%emt 0:00:04]} 18. Kf2 {[%emt 0:04:49]} Bxf3 {[%emt 0:00:41]} 19. exf3 {[%emt 0:00:17]} Rhe8 {[%emt 0:00:31]} 20. Bh6 {[%emt 0:01:16]} Kf8 {[%emt 0:01:23]} 21. Bxg7+ {[%emt 0:04:38]} Kxg7 {[%emt 0:00:05]} 22. Re1 {[%emt 0:04:11]} Ne5 {[%emt 0:01:46]} 23. Qf1 {[%emt 0:03:05]} Rad8 {[%emt 0:01:10]} 24. Kg2 {[%emt 0:25:36]} Rd2+ {[%emt 0:03:21]} 25. Kh3 {[%emt 0:02:06]} Nxf3 {[%emt 0:01:44]} 26. Re2 {[%emt 0:04:19]} Rexe2 {[%emt 0:05:52]} 27. Nxe2 {[%emt 0:00:41]} g5 {[%emt 0:15:17]} 28. g4 {[%emt 0:06:07]} Nh4 {[%emt 0:00:39]} 29. Ng3 {[%emt 0:04:26]} Kg6 {[%emt 0:03:49]} 30. Qc1 {[%emt 0:04:16]} Nd5 {[%emt 0:03:17]} 31. Qxc6+ {[%emt 0:01:26]} f6 {[%emt 0:01:19]} 32. Qe8+ {[%emt 0:01:37]} Kg7 {[%emt 0:00:05]} 33. Nh5+ {[%emt 0:00:47]} Kh6 {[%emt 0:00:33]} 34. Qf8+ {[%emt 0:00:14]} Kg6 {[%emt 0:00:08]} 35. Qg7# {[%emt 0:00:10]} 1-0

[Event "Kragero Resort Chess B 2019"]
[Site "Kragero"]
[Date "2019.02.22"]
[Round "4.8"]
[White "Manukyan, Hayk T."]
[Black "Gaudernack, Henrik Egeland"]
[Result "1-0"]
[ECO "D78"]
[WhiteElo "1806"]
[BlackElo "1585"]
[Annotator "NA"]
[PlyCount "77"]
[EventDate "2019.02.20"]
[EventType "swiss"]
[EventCountry "NOR"]
[SourceTitle "playchess.com"]
[Source "ChessBase"]
[SourceQuality "1"]
[TimeControl "5400+30"]

1. d4 {[%emt 0:00:00]} d5 {[%emt 0:00:00]} 2. c4 {[%emt 0:00:00]} c6 {[%emt 0:00:00]} 3. Nf3 {[%emt 0:00:00]} Nf6 {[%emt 0:00:10]} 4. Nbd2 {[%emt 0:00:00]} g6 {[%emt 0:01:12]} 5. g3 {[%emt 0:04:22]} Bg7 {[%emt 0:01:00]} 6. Bg2 {[%emt 0:00:07]} O-O {[%emt 0:00:10]} 7. O-O {[%emt 0:00:06]} Nbd7 {[%emt 0:01:54]} 8. b3 {[%emt 0:00:39]} Re8 {[%emt 0:01:11]} 9. Bb2 {[%emt 0:00:21]} dxc4 $14 {[%emt 0:02:14]} 10. bxc4 {[%emt 0:07:45]} e5 {[%emt 0:06:20]} 11. e3 {[%emt 0:13:45]} Qc7 {[%emt 0:03:47]} 12. Qb3 {[%emt 0:03:23]} exd4 {[%emt 0:04:28]} 13. exd4 {[%emt 0:00:19]} Nb6 {[%emt 0:01:59]} 14. Ne5 {[%emt 0:16:34]} Be6 {[%emt 0:04:40]} 15. Rac1 {[%emt 0:02:42]} Nfd7 {[%emt 0:06:13]} 16. f4 {[%emt 0:03:53]} f6 {[%emt 0:03:34]} 17. Nef3 {[%emt 0:06:48]} Nxc4 {[%emt 0:03:17]} 18. Rxc4 {[%emt 0:07:34]} b5 {[%emt 0:03:32]} 19. Qxb5 {[%emt 0:00:33]} Rab8 {[%emt 0:04:18]} 20. Rxc6 {[%emt 0:05:13]} Rxb5 {[%emt 0:04:03]} 21. Rxc7 {[%emt 0:00:03]} Rxb2 {[%emt 0:00:09]} 22. Rxa7 {[%emt 0:01:38]} Rxa2 {[%emt 0:00:42]} 23. Rxa2 {[%emt 0:00:23]} Bxa2 {[%emt 0:00:08]} 24. Ra1 {[%emt 0:01:12]} Bd5 {[%emt 0:01:12]} 25. Kf2 {[%emt 0:00:20]} f5 {[%emt 0:01:38]} 26. Ne5 {[%emt 0:00:15]} Bxg2 {[%emt 0:01:27]} 27. Kxg2 {[%emt 0:00:15]} Rd8 {[%emt 0:01:08]} 28. Nxd7 {[%emt 0:05:27]} Rxd7 {[%emt 0:00:07]} 29. Nf3 {[%emt 0:00:06]} Rd8 {[%emt 0:01:45]} 30. Rd1 {[%emt 0:00:25]} Kf7 {[%emt 0:00:12]} 31. Ng5+ {[%emt 0:01:38]} Kg8 {[%emt 0:01:16]} 32. Ne6 {[%emt 0:00:42]} Rd5 {[%emt 0:00:36]} 33. Nxg7 {[%emt 0:00:21]} Kxg7 {[%emt 0:00:09]} 34. Kf3 {[%emt 0:00:02]} Kf6 {[%emt 0:00:25]} 35. Ke3 {[%emt 0:00:07]} g5 {[%emt 0:01:38]} 36. Rc1 {[%emt 0:00:31]} Kg6 {[%emt 0:01:24]} 37. Rc6+ {[%emt 0:00:16]} Kh5 {[%emt 0:00:20]} 38. Rc5 {[%emt 0:00:16]} gxf4+ {[%emt 0:00:39]} 39. gxf4 {[%emt 0:00:12]} 1-0

[Event "Kragero Resort Chess B 2019"]
[Site "Kragero"]
[Date "2019.02.22"]
[Round "5.1"]
[White "Halvorsen, Benjamin"]
[Black "Wright, Haakon"]
[Result "1/2-1/2"]
[ECO "B35"]
[WhiteElo "1683"]
[BlackElo "1750"]
[Annotator "NA"]
[PlyCount "47"]
[EventDate "2019.02.20"]
[EventType "swiss"]
[EventCountry "NOR"]
[SourceTitle "playchess.com"]
[Source "ChessBase"]
[SourceQuality "1"]
[TimeControl "5400+30"]

1. e4 {[%emt 0:00:00]} c5 {[%emt 0:00:00]} 2. Nf3 {[%emt 0:00:00]} g6 {[%emt 0:00:00]} 3. Nc3 {[%emt 0:00:00]} Bg7 {[%emt 0:00:00]} 4. d4 {[%emt 0:00:07]} cxd4 {[%emt 0:00:00]} 5. Nxd4 {[%emt 0:00:09]} Nc6 {[%emt 0:00:00]} 6. Be3 {[%emt 0:00:10]} Nf6 {[%emt 0:00:00]} 7. Bc4 {[%emt 0:00:09]} O-O {[%emt 0:00:00]} 8. Bb3 {[%emt 0:00:15]} a5 {[%emt 0:00:00]} 9. a4 {[%emt 0:06:26]} Ng4 {[%emt 0:07:28]} 10. Nxc6 {[%emt 0:14:08]} Nxe3 {[%emt 0:00:08]} 11. Nxd8 {[%emt 0:02:02]} Nxd1 {[%emt 0:00:02]} 12. Rxd1 {[%emt 0:00:19]} Rxd8 {[%emt 0:00:08]} 13. Nd5 {[%emt 0:00:48]} Kf8 {[%emt 0:06:52]} 14. Nb6 {[%emt 0:03:28]} Ra6 {[%emt 0:05:57]} 15. Nxc8 {[%emt 0:03:54]} Rxc8 {[%emt 0:00:02]} 16. Rxd7 {[%emt 0:00:54]} Rb6 {[%emt 0:01:16]} 17. Ke2 {[%emt 0:03:48]} Bxb2 {[%emt 0:02:34]} 18. Rhd1 {[%emt 0:05:12]} Rb4 {[%emt 0:05:43]} 19. Rd8+ {[%emt 0:04:42]} Rxd8 {[%emt 0:00:12]} 20. Rxd8+ {[%emt 0:00:01]} Kg7 {[%emt 0:00:08]} 21. Ke3 {[%emt 0:00:34]} b5 {[%emt 0:19:39]} 22. Rb8 {[%emt 0:02:28]} bxa4 {[%emt 0:13:25]} 23. Rxb4 {[%emt 0:00:07]} axb4 {[%emt 0:00:10]} 24. Bxa4 {[%emt 0:00:08]} 1/2-1/2

[Event "Kragero Resort Chess B 2019"]
[Site "Kragero"]
[Date "2019.02.22"]
[Round "5.2"]
[White "Austad, Eirik"]
[Black "Leonhardsen, Vebjorn Maanum"]
[Result "1/2-1/2"]
[ECO "A11"]
[WhiteElo "1629"]
[BlackElo "1748"]
[Annotator "NA"]
[PlyCount "88"]
[EventDate "2019.02.20"]
[EventType "swiss"]
[EventCountry "NOR"]
[SourceTitle "playchess.com"]
[Source "ChessBase"]
[SourceQuality "1"]
[TimeControl "5400+30"]

1. c4 {[%emt 0:00:00]} c6 {[%emt 0:00:00]} 2. Nf3 {[%emt 0:00:23]} d5 {[%emt 0:00:00]} 3. e3 {[%emt 0:00:20]} Nf6 {[%emt 0:00:00]} 4. Nc3 {[%emt 0:00:29]} e6 {[%emt 0:01:13]} 5. Be2 {[%emt 0:06:18]} Bd6 {[%emt 0:00:12]} 6. b3 {[%emt 0:09:21]} O-O {[%emt 0:00:19]} 7. O-O {[%emt 0:01:36]} Nbd7 {[%emt 0:10:40]} 8. Bb2 {[%emt 0:04:37]} Re8 {[%emt 0:04:24]} 9. Rc1 {[%emt 0:01:58]} Nf8 {[%emt 0:01:20]} 10. a3 {[%emt 0:05:06]} Ng6 {[%emt 0:02:34]} 11. cxd5 {[%emt 0:07:05]} exd5 {[%emt 0:00:14]} 12. Na4 {[%emt 0:02:14]} Ne4 {[%emt 0:03:54]} 13. b4 {[%emt 0:01:28]} Ne5 {[%emt 0:05:57]} 14. Nd4 {[%emt 0:07:50]} a6 {[%emt 0:06:06]} 15. f4 {[%emt 0:07:45]} Nd7 {[%emt 0:03:27]} 16. Nf5 {[%emt 0:07:25]} Bf8 {[%emt 0:02:39]} 17. Qe1 {[%emt 0:09:11]} Nb6 {[%emt 0:04:56]} 18. Nxb6 {[%emt 0:02:33]} Qxb6 {[%emt 0:00:21]} 19. Nh4 {[%emt 0:04:23]} Qd8 {[%emt 0:05:50]} 20. Nf3 {[%emt 0:04:26]} Bg4 {[%emt 0:01:55]} 21. Ne5 {[%emt 0:01:26]} Bxe2 {[%emt 0:00:40]} 22. Qxe2 {[%emt 0:00:06]} Nf6 {[%emt 0:03:07]} 23. Rf3 {[%emt 0:01:43]} Nd7 {[%emt 0:03:10]} 24. Ng4 {[%emt 0:00:38]} g6 {[%emt 0:11:58]} 25. f5 {[%emt 0:01:01]} Bg7 {[%emt 0:02:01]} 26. fxg6 {[%emt 0:03:58]} fxg6 {[%emt 0:00:18]} 27. Bxg7 {[%emt 0:00:48]} Kxg7 {[%emt 0:01:12]} 28. Qd3 {[%emt 0:00:49]} Qg5 {[%emt 0:06:43]} 29. Qd4+ {[%emt 0:04:26]} Ne5 {[%emt 0:04:15]} 30. Nxe5 {[%emt 0:02:13]} Qxe5 {[%emt 0:00:10]} 31. Qc5 {[%emt 0:01:24]} Qe7 {[%emt 0:00:54]} 32. Rcf1 {[%emt 0:01:26]} Rad8 {[%emt 0:01:56]} 33. Qd4+ {[%emt 0:00:44]} Kg8 {[%emt 0:00:39]} 34. Qf6 {[%emt 0:00:09]} Qxf6 {[%emt 0:01:51]} 35. Rxf6 {[%emt 0:00:02]} Rf8 {[%emt 0:01:45]} 36. Rxf8+ {[%emt 0:00:33]} Rxf8 {[%emt 0:00:06]} 37. Rxf8+ {[%emt 0:00:07]} Kxf8 {[%emt 0:00:04]} 38. Kf2 {[%emt 0:00:06]} Ke7 {[%emt 0:00:20]} 39. Kf3 {[%emt 0:00:15]} Kd6 {[%emt 0:00:59]} 40. d4 {[%emt 0:00:37]} b6 {[%emt 0:02:13]} 41. Kf4 {[%emt 0:00:42]} h6 {[%emt 0:01:59]} 42. h4 {[%emt 0:00:06]} Ke6 {[%emt 0:01:46]} 43. g4 {[%emt 0:01:01]} Kf6 {[%emt 0:01:40]} 44. a4 {[%emt 0:00:52]} h5 {[%emt 0:03:07]} 1/2-1/2